[Event "Late-Titled-Tuesday-Blitz-July-09-2024"]
[Site "Chess.com"]
[Date "2024.07.09"]
[Round "1"]
[White "ReadySkate"]
[Black "merinasian"]
[Result "1-0"]
[WhiteElo "2780"]
[BlackElo "2421"]
[TimeControl "180+1"]
[EndTime "14:07:16 PDT"]
[Termination "ReadySkate won by resignation"]

1. d4 {[%clk 0:02:57.9]} 1... d6 {[%clk 0:03:00.9]} 2. e4 {[%clk 0:02:57.5]}
2... Nd7 {[%clk 0:03:01.4]} 3. Nf3 {[%clk 0:02:57.2]} 3... g6 {[%clk 0:03:01.8]}
4. Nc3 {[%clk 0:02:56]} 4... Bg7 {[%clk 0:03:00.6]} 5. Bc4 {[%clk 0:02:56.6]}
5... e6 {[%clk 0:03:00.3]} 6. O-O {[%clk 0:02:56.2]} 6... Ne7 {[%clk 0:03:00.4]}
7. a4 {[%clk 0:02:55]} 7... a6 {[%clk 0:02:59.5]} 8. Qe2 {[%clk 0:02:54.2]} 8...
h6 {[%clk 0:02:56.5]} 9. h4 {[%clk 0:02:52.4]} 9... b6 {[%clk 0:02:45.7]} 10.
Bf4 {[%clk 0:02:50.1]} 10... Bb7 {[%clk 0:02:44.8]} 11. Rfe1 {[%clk 0:02:48.7]}
11... Nf6 {[%clk 0:02:34.8]} 12. Rad1 {[%clk 0:02:45.2]} 12... O-O {[%clk
0:02:32.6]} 13. Bh2 {[%clk 0:02:36.7]} 13... d5 {[%clk 0:02:12]} 14. exd5 {[%clk
0:02:35.5]} 14... Nexd5 {[%clk 0:02:11.4]} 15. Be5 {[%clk 0:02:33.9]} 15... Nxc3
{[%clk 0:02:10]} 16. bxc3 {[%clk 0:02:34.8]} 16... Nd5 {[%clk 0:02:00.4]} 17.
Qd2 {[%clk 0:02:26.7]} 17... Bc6 {[%clk 0:01:32.5]} 18. h5 {[%clk 0:02:24]}
18... g5 {[%clk 0:01:30]} 19. Bd3 {[%clk 0:02:22.6]} 19... Bxa4 {[%clk
0:01:26.5]} 20. c4 {[%clk 0:02:21.5]} 20... Ne7 {[%clk 0:01:24.6]} 21. Bxg7
{[%clk 0:02:19.4]} 21... Kxg7 {[%clk 0:01:24.4]} 22. Nxg5 {[%clk 0:02:20]} 22...
hxg5 {[%clk 0:01:15.1]} 23. Qxg5+ {[%clk 0:02:20.7]} 23... Ng6 {[%clk
0:01:14.7]} 24. Qg3 {[%clk 0:02:08.5]} 24... Qh4 {[%clk 0:01:08.9]} 25. hxg6
{[%clk 0:02:07.9]} 25... Qxg3 {[%clk 0:01:08.8]} 26. fxg3 {[%clk 0:02:08.8]}
26... Rad8 {[%clk 0:01:02.5]} 27. gxf7 {[%clk 0:02:05.1]} 27... Rxd4 {[%clk
0:01:02]} 28. Rxe6 {[%clk 0:02:02.3]} 28... Rxf7 {[%clk 0:01:02.2]} 29. Rde1
{[%clk 0:01:57]} 29... Rg4 {[%clk 0:00:53.9]} 30. Kh2 {[%clk 0:01:52.9]} 30...
Bd7 {[%clk 0:00:51.6]} 31. R6e4 {[%clk 0:01:46.6]} 31... Rxe4 {[%clk 0:00:50.2]}
32. Rxe4 {[%clk 0:01:46]} 32... a5 {[%clk 0:00:50.1]} 33. c5 {[%clk 0:01:45]}
33... b5 {[%clk 0:00:40.4]} 34. c3 {[%clk 0:01:32.8]} 34... a4 {[%clk
0:00:40.4]} 35. Bb1 {[%clk 0:01:29.3]} 35... Bc6 {[%clk 0:00:34.9]} 36. Re6
{[%clk 0:01:26]} 36... Bd5 {[%clk 0:00:34.5]} 37. Rg6+ {[%clk 0:01:25.6]} 37...
Kf8 {[%clk 0:00:34.4]} 38. Ra6 {[%clk 0:01:20.3]} 38... Rf2 {[%clk 0:00:32.6]}
39. Bd3 {[%clk 0:01:17.9]} 39... c6 {[%clk 0:00:29]} 40. Kh3 {[%clk 0:01:16]}
40... Rxg2 {[%clk 0:00:27.4]} 41. c4 {[%clk 0:01:13.5]} 41... bxc4 {[%clk
0:00:16.9]} 42. Bxc4 {[%clk 0:01:12.9]} 42... Bxc4 {[%clk 0:00:14]} 43. Ra8+
{[%clk 0:01:12.9]} 43... Ke7 {[%clk 0:00:12.4]} 44. Kxg2 {[%clk 0:01:13.5]}
44... Bb5 {[%clk 0:00:12.8]} 45. Kf3 {[%clk 0:01:13.8]} 45... Ke6 {[%clk
0:00:12.7]} 46. Ke4 {[%clk 0:01:14.4]} 46... Kf6 {[%clk 0:00:12.7]} 47. Rg8
{[%clk 0:01:07.2]} 47... Bc4 {[%clk 0:00:11.2]} 48. Rf8+ {[%clk 0:01:07.4]}
48... Ke7 {[%clk 0:00:10.9]} 49. Ra8 {[%clk 0:01:07.7]} 49... Bb3 {[%clk
0:00:10.7]} 50. Ke5 {[%clk 0:01:08.2]} 50... Kd7 {[%clk 0:00:09.2]} 51. Kf6
{[%clk 0:01:07.6]} 51... Bc2 {[%clk 0:00:05.3]} 52. g4 {[%clk 0:01:06.8]} 52...
Kc7 {[%clk 0:00:06.2]} 53. Ra5 {[%clk 0:01:06.2]} 53... Kb7 {[%clk 0:00:07.1]}
54. g5 {[%clk 0:01:06.1]} 1-0

[Event "Late-Titled-Tuesday-Blitz-July-09-2024"]
[Site "Chess.com"]
[Date "2024.07.09"]
[Round "1"]
[White "vi_pranav"]
[Black "Matalon"]
[Result "1-0"]
[WhiteElo "2999"]
[BlackElo "2504"]
[TimeControl "180+1"]
[EndTime "14:07:18 PDT"]
[Termination "vi_pranav won by resignation"]

1. e4 {[%clk 0:03:00.9]} 1... e5 {[%clk 0:02:58.7]} 2. Nf3 {[%clk 0:02:58.8]}
2... Nc6 {[%clk 0:02:59.1]} 3. Bb5 {[%clk 0:02:57.1]} 3... a6 {[%clk 0:02:58.4]}
4. Ba4 {[%clk 0:02:55.9]} 4... Nf6 {[%clk 0:02:58.9]} 5. O-O {[%clk 0:02:55.6]}
5... Be7 {[%clk 0:02:58.7]} 6. d3 {[%clk 0:02:55.1]} 6... b5 {[%clk 0:02:59]} 7.
Bb3 {[%clk 0:02:55]} 7... d6 {[%clk 0:02:59.5]} 8. c3 {[%clk 0:02:49.5]} 8...
O-O {[%clk 0:02:58.6]} 9. a4 {[%clk 0:02:49.9]} 9... Bb7 {[%clk 0:02:43.2]} 10.
Bg5 {[%clk 0:02:48.2]} 10... Na5 {[%clk 0:02:36.4]} 11. Ba2 {[%clk 0:02:42.3]}
11... c5 {[%clk 0:02:34.7]} 12. Na3 {[%clk 0:02:42.2]} 12... Bc6 {[%clk
0:02:27.8]} 13. axb5 {[%clk 0:02:36.7]} 13... axb5 {[%clk 0:02:28.7]} 14. Nc2
{[%clk 0:02:37.3]} 14... Nd7 {[%clk 0:02:25.4]} 15. Bxe7 {[%clk 0:02:35.4]}
15... Qxe7 {[%clk 0:02:26.3]} 16. Ne3 {[%clk 0:02:36.3]} 16... g6 {[%clk
0:02:25.4]} 17. Nd5 {[%clk 0:02:26.8]} 17... Qd8 {[%clk 0:02:03.3]} 18. Qd2
{[%clk 0:02:21.3]} 18... Nf6 {[%clk 0:01:55.7]} 19. b4 {[%clk 0:02:07.8]} 19...
Bxd5 {[%clk 0:01:23.4]} 20. Bxd5 {[%clk 0:01:54.4]} 20... Nxd5 {[%clk
0:01:19.7]} 21. exd5 {[%clk 0:01:35.5]} 21... Nb7 {[%clk 0:01:18]} 22. Qh6
{[%clk 0:01:30.3]} 22... Qf6 {[%clk 0:00:48.2]} 23. Qh3 {[%clk 0:01:21.8]} 23...
Qe7 {[%clk 0:00:43.4]} 24. Qh6 {[%clk 0:01:18.8]} 24... Qf6 {[%clk 0:00:43.2]}
25. h3 {[%clk 0:01:14.1]} 25... Qg7 {[%clk 0:00:28.5]} 26. Qh4 {[%clk
0:01:10.6]} 26... f5 {[%clk 0:00:24.5]} 27. Rfb1 {[%clk 0:01:05.5]} 27... cxb4
{[%clk 0:00:21.8]} 28. Qxb4 {[%clk 0:01:04.2]} 28... Qd7 {[%clk 0:00:17.9]} 29.
Rxa8 {[%clk 0:00:52]} 29... Rxa8 {[%clk 0:00:18.8]} 30. d4 {[%clk 0:00:36.1]}
30... e4 {[%clk 0:00:16.6]} 31. Ng5 {[%clk 0:00:36.2]} 31... Nd8 {[%clk
0:00:15]} 32. h4 {[%clk 0:00:35.5]} 32... h6 {[%clk 0:00:14.5]} 33. Nh3 {[%clk
0:00:35.8]} 33... Rc8 {[%clk 0:00:14.6]} 34. Nf4 {[%clk 0:00:34.7]} 34... Kg7
{[%clk 0:00:14.7]} 35. Ra1 {[%clk 0:00:28.2]} 35... Rc4 {[%clk 0:00:15]} 36. Qa5
{[%clk 0:00:27.6]} 36... Rc7 {[%clk 0:00:14]} 37. Qb6 {[%clk 0:00:26.9]} 37...
Rb7 {[%clk 0:00:14]} 38. Qxd8 {[%clk 0:00:26.6]} 38... Qxd8 {[%clk 0:00:11]} 39.
Ne6+ {[%clk 0:00:27.5]} 39... Kf6 {[%clk 0:00:11.4]} 40. Nxd8 {[%clk 0:00:28.4]}
40... Rc7 {[%clk 0:00:12]} 41. Nc6 {[%clk 0:00:28.7]} 41... Rc8 {[%clk
0:00:11.8]} 42. Ra5 {[%clk 0:00:28.5]} 42... g5 {[%clk 0:00:09.5]} 43. hxg5+
{[%clk 0:00:28.1]} 43... hxg5 {[%clk 0:00:10.4]} 44. Rxb5 {[%clk 0:00:28.2]}
44... f4 {[%clk 0:00:10.5]} 45. Rb7 {[%clk 0:00:27.8]} 45... Kf5 {[%clk
0:00:11.4]} 1-0

[Event "Late-Titled-Tuesday-Blitz-July-09-2024"]
[Site "Chess.com"]
[Date "2024.07.09"]
[Round "1"]
[White "Arystanner"]
[Black "AktilekAskarovich"]
[Result "1-0"]
[WhiteElo "2913"]
[BlackElo "2475"]
[TimeControl "180+1"]
[EndTime "14:07:19 PDT"]
[Termination "Arystanner won on time"]

1. d4 {[%clk 0:02:57.3]} 1... d5 {[%clk 0:02:59]} 2. Nf3 {[%clk 0:02:56.9]} 2...
Nf6 {[%clk 0:02:58.6]} 3. c4 {[%clk 0:02:57.3]} 3... e6 {[%clk 0:02:56.3]} 4.
Nc3 {[%clk 0:02:57.4]} 4... c6 {[%clk 0:02:43.8]} 5. Qd3 {[%clk 0:02:56.3]} 5...
dxc4 {[%clk 0:02:40.3]} 6. Qxc4 {[%clk 0:02:56.5]} 6... b5 {[%clk 0:02:40.9]} 7.
Qd3 {[%clk 0:02:56.8]} 7... Bb7 {[%clk 0:02:40.6]} 8. e4 {[%clk 0:02:56.3]} 8...
a6 {[%clk 0:02:41]} 9. e5 {[%clk 0:02:56.2]} 9... Nd5 {[%clk 0:02:41.1]} 10. Ne4
{[%clk 0:02:56]} 10... Nd7 {[%clk 0:02:41.4]} 11. Bg5 {[%clk 0:02:50.6]} 11...
Qa5+ {[%clk 0:02:40.4]} 12. Bd2 {[%clk 0:02:50.6]} 12... Qb6 {[%clk 0:02:40]}
13. a4 {[%clk 0:02:43.9]} 13... Be7 {[%clk 0:02:34.7]} 14. Be2 {[%clk
0:02:39.8]} 14... h6 {[%clk 0:02:32.2]} 15. O-O {[%clk 0:02:38.3]} 15... O-O
{[%clk 0:02:32.2]} 16. Rfc1 {[%clk 0:02:29.6]} 16... Rfc8 {[%clk 0:02:31.6]} 17.
Nd6 {[%clk 0:02:23.9]} 17... Bxd6 {[%clk 0:02:29.4]} 18. exd6 {[%clk 0:02:24.8]}
18... Rab8 {[%clk 0:01:54.7]} 19. Ne5 {[%clk 0:02:22.9]} 19... Qd8 {[%clk
0:01:55.1]} 20. Qg3 {[%clk 0:02:22.5]} 20... Kf8 {[%clk 0:01:51.8]} 21. Bh5
{[%clk 0:02:09.5]} 21... Nxe5 {[%clk 0:01:51.6]} 22. dxe5 {[%clk 0:02:09.9]}
22... c5 {[%clk 0:01:38.5]} 23. axb5 {[%clk 0:02:03.5]} 23... axb5 {[%clk
0:01:38.6]} 24. Ra7 {[%clk 0:02:03.1]} 24... c4 {[%clk 0:01:35.2]} 25. Bf3
{[%clk 0:01:57.4]} 25... Qd7 {[%clk 0:01:32.8]} 26. Bxd5 {[%clk 0:01:42.8]}
26... exd5 {[%clk 0:01:32]} 27. Be3 {[%clk 0:01:43.2]} 27... Ra8 {[%clk
0:01:31.3]} 28. Rca1 {[%clk 0:01:33.7]} 28... Rxa7 {[%clk 0:01:31.4]} 29. Rxa7
{[%clk 0:01:34.6]} 29... Ra8 {[%clk 0:01:30.9]} 30. Rxa8+ {[%clk 0:01:31]} 30...
Bxa8 {[%clk 0:01:30.7]} 31. Bc5 {[%clk 0:01:30.3]} 31... Kg8 {[%clk 0:01:26.4]}
32. h3 {[%clk 0:01:27]} 32... Bc6 {[%clk 0:01:24.2]} 33. Qf4 {[%clk 0:01:13.2]}
33... Qe6 {[%clk 0:01:21.9]} 34. Kh2 {[%clk 0:01:11.8]} 34... Qg6 {[%clk
0:01:21.8]} 35. f3 {[%clk 0:01:10.4]} 35... Qe6 {[%clk 0:01:18.7]} 36. Bd4
{[%clk 0:01:04.9]} 36... Kf8 {[%clk 0:01:17.7]} 37. Qd2 {[%clk 0:01:02.9]} 37...
Qf5 {[%clk 0:01:08.4]} 38. Qa5 {[%clk 0:00:49.3]} 38... Qf4+ {[%clk 0:00:57.1]}
39. Kh1 {[%clk 0:00:49.6]} 39... Qxd4 {[%clk 0:00:32.3]} 40. Qd8+ {[%clk
0:00:48.9]} 40... Be8 {[%clk 0:00:32.8]} 41. Qe7+ {[%clk 0:00:44.5]} 41... Kg8
{[%clk 0:00:32.6]} 42. Qxe8+ {[%clk 0:00:43.4]} 42... Kh7 {[%clk 0:00:08.3]} 43.
d7 {[%clk 0:00:43.2]} 43... c3 {[%clk 0:00:05.8]} 44. bxc3 {[%clk 0:00:41.6]}
44... Qe3 {[%clk 0:00:04.8]} 45. Qxf7 {[%clk 0:00:38.3]} 45... Qc1+ {[%clk
0:00:04.8]} 46. Kh2 {[%clk 0:00:38.7]} 1-0

[Event "Late-Titled-Tuesday-Blitz-July-09-2024"]
[Site "Chess.com"]
[Date "2024.07.09"]
[Round "1"]
[White "Nemsko"]
[Black "Zurability"]
[Result "0-1"]
[WhiteElo "2336"]
[BlackElo "2661"]
[TimeControl "180+1"]
[EndTime "14:07:20 PDT"]
[Termination "Zurability won on time"]

1. e4 {[%clk 0:03:00.9]} 1... c5 {[%clk 0:02:55]} 2. Nf3 {[%clk 0:03:00.7]} 2...
d6 {[%clk 0:02:55.6]} 3. d4 {[%clk 0:03:00]} 3... cxd4 {[%clk 0:02:56.1]} 4.
Nxd4 {[%clk 0:03:00.9]} 4... Nf6 {[%clk 0:02:55]} 5. Nc3 {[%clk 0:03:01]} 5...
g6 {[%clk 0:02:54.5]} 6. Be3 {[%clk 0:02:59.3]} 6... Bg7 {[%clk 0:02:51.5]} 7.
f3 {[%clk 0:02:57.6]} 7... a6 {[%clk 0:02:49.1]} 8. Qd2 {[%clk 0:02:56.5]} 8...
Nbd7 {[%clk 0:02:49]} 9. O-O-O {[%clk 0:02:56]} 9... b5 {[%clk 0:02:46.3]} 10.
g4 {[%clk 0:02:44.2]} 10... Bb7 {[%clk 0:02:44]} 11. h4 {[%clk 0:02:34.2]} 11...
Rc8 {[%clk 0:02:21.8]} 12. Kb1 {[%clk 0:02:18]} 12... Ne5 {[%clk 0:02:19.1]} 13.
Bd3 {[%clk 0:02:05]} 13... h5 {[%clk 0:02:15.5]} 14. g5 {[%clk 0:02:03.6]} 14...
Nfd7 {[%clk 0:02:15.9]} 15. f4 {[%clk 0:01:59.9]} 15... Ng4 {[%clk 0:01:57.7]}
16. Bg1 {[%clk 0:01:50.1]} 16... e5 {[%clk 0:01:55.2]} 17. Nde2 {[%clk
0:01:31.7]} 17... exf4 {[%clk 0:01:48.2]} 18. Qxf4 {[%clk 0:01:26.9]} 18... Nde5
{[%clk 0:01:45.9]} 19. Bd4 {[%clk 0:01:03.1]} 19... O-O {[%clk 0:01:43.1]} 20.
Rhf1 {[%clk 0:00:41.2]} 20... Qc7 {[%clk 0:01:36.6]} 21. Rc1 {[%clk 0:00:30.8]}
21... b4 {[%clk 0:01:22.9]} 22. Nd5 {[%clk 0:00:26.6]} 22... Bxd5 {[%clk
0:01:21.1]} 23. exd5 {[%clk 0:00:27.5]} 23... Qb7 {[%clk 0:01:15.2]} 24. Be4
{[%clk 0:00:22.7]} 24... Rc4 {[%clk 0:01:03]} 25. Qd2 {[%clk 0:00:19.6]} 25...
Rfc8 {[%clk 0:01:00.9]} 26. Bd3 {[%clk 0:00:17.9]} 26... Nxd3 {[%clk 0:00:44.2]}
27. Qxd3 {[%clk 0:00:15.6]} 27... Qxd5 {[%clk 0:00:33.4]} 28. Bxg7 {[%clk
0:00:14.2]} 28... Qxd3 {[%clk 0:00:33.2]} 29. cxd3 {[%clk 0:00:15.1]} 29...
Rxc1+ {[%clk 0:00:33.4]} 30. Nxc1 {[%clk 0:00:09.9]} 30... Kxg7 {[%clk
0:00:33.3]} 31. Nb3 {[%clk 0:00:09.4]} 31... Ne5 {[%clk 0:00:17.4]} 32. d4
{[%clk 0:00:07.8]} 32... Nd3 {[%clk 0:00:17.2]} 33. Rf3 {[%clk 0:00:06.1]} 33...
Ne1 {[%clk 0:00:16.5]} 34. Re3 {[%clk 0:00:05.7]} 34... Ng2 {[%clk 0:00:16.4]}
35. Re4 {[%clk 0:00:05.7]} 35... d5 {[%clk 0:00:15.7]} 36. Re5 {[%clk
0:00:05.4]} 36... Nxh4 {[%clk 0:00:12.6]} 37. Rxd5 {[%clk 0:00:05.9]} 37... Nf3
{[%clk 0:00:13.3]} 38. Nc5 {[%clk 0:00:05.8]} 38... h4 {[%clk 0:00:12.9]} 39.
Rd7 {[%clk 0:00:05.9]} 39... h3 {[%clk 0:00:11.8]} 40. Ne6+ {[%clk 0:00:03.9]}
40... Kg8 {[%clk 0:00:11.5]} 0-1

[Event "Late-Titled-Tuesday-Blitz-July-09-2024"]
[Site "Chess.com"]
[Date "2024.07.09"]
[Round "1"]
[White "pirulillo"]
[Black "GoltsevDmitry2000"]
[Result "0-1"]
[WhiteElo "2413"]
[BlackElo "2756"]
[TimeControl "180+1"]
[EndTime "14:07:25 PDT"]
[Termination "GoltsevDmitry2000 won by resignation"]

1. e4 {[%clk 0:02:58.9]} 1... e6 {[%clk 0:03:00.3]} 2. d3 {[%clk 0:02:57.6]}
2... d5 {[%clk 0:03:01.2]} 3. Nd2 {[%clk 0:02:56.6]} 3... Nf6 {[%clk 0:03:01]}
4. Ngf3 {[%clk 0:02:56.6]} 4... Bc5 {[%clk 0:02:57.8]} 5. e5 {[%clk 0:02:52.1]}
5... Nfd7 {[%clk 0:02:57.1]} 6. Qe2 {[%clk 0:02:40.1]} 6... Nc6 {[%clk 0:02:56]}
7. c3 {[%clk 0:02:37.8]} 7... d4 {[%clk 0:02:55.7]} 8. g3 {[%clk 0:02:27.2]}
8... Nb6 {[%clk 0:02:43.2]} 9. Bg2 {[%clk 0:02:13]} 9... Nd5 {[%clk 0:02:37.3]}
10. c4 {[%clk 0:02:10.9]} 10... Nde7 {[%clk 0:02:36.7]} 11. a3 {[%clk
0:02:08.9]} 11... Nf5 {[%clk 0:02:33]} 12. b4 {[%clk 0:02:04.6]} 12... Be7
{[%clk 0:02:32.9]} 13. Ne4 {[%clk 0:02:03.6]} 13... a6 {[%clk 0:02:24.5]} 14. h4
{[%clk 0:02:02.8]} 14... h6 {[%clk 0:02:22]} 15. h5 {[%clk 0:01:37.1]} 15... Bd7
{[%clk 0:02:01.8]} 16. Bb2 {[%clk 0:01:31.3]} 16... b5 {[%clk 0:01:33.5]} 17. c5
{[%clk 0:01:25.5]} 17... a5 {[%clk 0:01:31.2]} 18. Qd2 {[%clk 0:00:53.6]} 18...
O-O {[%clk 0:01:13.6]} 19. O-O {[%clk 0:00:52.5]} 19... Ra6 {[%clk 0:01:07.6]}
20. g4 {[%clk 0:00:45.4]} 20... Nh4 {[%clk 0:01:07.5]} 21. Nxh4 {[%clk
0:00:44.8]} 21... Bxh4 {[%clk 0:01:08.4]} 22. f4 {[%clk 0:00:44.8]} 22... Ne7
{[%clk 0:01:05.5]} 23. Bxd4 {[%clk 0:00:34.1]} 23... Nd5 {[%clk 0:01:03.7]} 24.
Bf2 {[%clk 0:00:30.8]} 24... Bc6 {[%clk 0:01:00.6]} 25. g5 {[%clk 0:00:24.5]}
25... hxg5 {[%clk 0:00:57.4]} 26. fxg5 {[%clk 0:00:25.4]} 26... Bxf2+ {[%clk
0:00:55.1]} 27. Rxf2 {[%clk 0:00:23.1]} 27... axb4 {[%clk 0:00:52.1]} 28. Raf1
{[%clk 0:00:19.5]} 28... bxa3 {[%clk 0:00:50.3]} 29. Nf6+ {[%clk 0:00:17.6]}
29... Kh8 {[%clk 0:00:36.9]} 30. g6 {[%clk 0:00:16.7]} 30... a2 {[%clk
0:00:32.7]} 31. Ra1 {[%clk 0:00:15.4]} 31... Nxf6 {[%clk 0:00:28.8]} 32. exf6
{[%clk 0:00:15.2]} 32... Qd4 {[%clk 0:00:28]} 33. h6 {[%clk 0:00:14.4]} 33...
Qxa1+ {[%clk 0:00:27.3]} 34. Kh2 {[%clk 0:00:14.6]} 34... Qe5+ {[%clk
0:00:25.1]} 35. Kg1 {[%clk 0:00:14.5]} 35... a1=Q+ {[%clk 0:00:23.9]} 36. Bf1
{[%clk 0:00:14.7]} 36... Qg3+ {[%clk 0:00:20.2]} 37. Rg2 {[%clk 0:00:14.1]}
37... Qxf1+ {[%clk 0:00:20]} 38. Kxf1 {[%clk 0:00:13.2]} 38... Ra1+ {[%clk
0:00:20.6]} 39. Ke2 {[%clk 0:00:12.4]} 39... Qxg2+ {[%clk 0:00:20.7]} 40. Ke3
{[%clk 0:00:10.3]} 40... Qf3+ {[%clk 0:00:20.3]} 41. Kd4 {[%clk 0:00:09.8]}
41... Qxf6+ {[%clk 0:00:20.7]} 42. Ke3 {[%clk 0:00:07.2]} 42... Qg5+ {[%clk
0:00:20.5]} 0-1

[Event "Late-Titled-Tuesday-Blitz-July-09-2024"]
[Site "Chess.com"]
[Date "2024.07.09"]
[Round "1"]
[White "Yaacovn"]
[Black "rionelG"]
[Result "1-0"]
[WhiteElo "2791"]
[BlackElo "2425"]
[TimeControl "180+1"]
[EndTime "14:07:30 PDT"]
[Termination "Yaacovn won by resignation"]

1. d4 {[%clk 0:03:00.4]} 1... d5 {[%clk 0:02:59.4]} 2. e3 {[%clk 0:02:59.3]}
2... b6 {[%clk 0:02:54.5]} 3. c3 {[%clk 0:02:58.4]} 3... Bb7 {[%clk 0:02:54]} 4.
Nd2 {[%clk 0:02:58.5]} 4... f5 {[%clk 0:02:38.1]} 5. c4 {[%clk 0:02:55.7]} 5...
e6 {[%clk 0:02:31.5]} 6. cxd5 {[%clk 0:02:55.3]} 6... exd5 {[%clk 0:02:28.8]} 7.
Ngf3 {[%clk 0:02:54.1]} 7... Nf6 {[%clk 0:02:27.3]} 8. b4 {[%clk 0:02:53.2]}
8... Bd6 {[%clk 0:02:09.3]} 9. Bb2 {[%clk 0:02:52.4]} 9... O-O {[%clk
0:02:08.7]} 10. b5 {[%clk 0:02:49.7]} 10... a6 {[%clk 0:01:58.4]} 11. a4 {[%clk
0:02:42.3]} 11... f4 {[%clk 0:01:51.6]} 12. exf4 {[%clk 0:02:37.5]} 12... Bxf4
{[%clk 0:01:47.8]} 13. Be2 {[%clk 0:02:34.5]} 13... Ne4 {[%clk 0:01:29.7]} 14.
O-O {[%clk 0:02:33.9]} 14... axb5 {[%clk 0:01:28.1]} 15. axb5 {[%clk 0:02:31.2]}
15... Rxa1 {[%clk 0:01:27.8]} 16. Bxa1 {[%clk 0:02:32.1]} 16... Nd7 {[%clk
0:01:21.9]} 17. Nxe4 {[%clk 0:02:21.5]} 17... dxe4 {[%clk 0:01:20.4]} 18. Ne5
{[%clk 0:02:22.4]} 18... Nxe5 {[%clk 0:01:15.6]} 19. dxe5 {[%clk 0:02:20.6]}
19... Qg5 {[%clk 0:01:13.6]} 20. Qd4 {[%clk 0:02:10.4]} 20... e3 {[%clk
0:01:07.6]} 21. f3 {[%clk 0:01:32.1]} 21... Rd8 {[%clk 0:00:40.4]} 22. Qc4+
{[%clk 0:01:10.9]} 22... Bd5 {[%clk 0:00:38.9]} 23. Qxc7 {[%clk 0:01:10.5]}
23... Qh4 {[%clk 0:00:30.6]} 24. h3 {[%clk 0:01:09.3]} 24... Be6 {[%clk
0:00:23]} 25. Bc3 {[%clk 0:00:49.9]} 25... Rd7 {[%clk 0:00:15.8]} 26. Qc8+
{[%clk 0:00:44]} 26... Kf7 {[%clk 0:00:15.5]} 27. Be1 {[%clk 0:00:42.8]} 27...
Bg3 {[%clk 0:00:10.6]} 28. Bxg3 {[%clk 0:00:41.1]} 28... Qxg3 {[%clk 0:00:11.5]}
29. Qc3 {[%clk 0:00:38.4]} 29... Bxh3 {[%clk 0:00:09.6]} 30. e6+ {[%clk
0:00:32.1]} 30... Bxe6 {[%clk 0:00:04.3]} 31. Qxe3 {[%clk 0:00:28.8]} 31... Re7
{[%clk 0:00:04.4]} 32. Qxb6 {[%clk 0:00:22.4]} 32... h5 {[%clk 0:00:04.8]} 33.
Qf2 {[%clk 0:00:22.2]} 33... Qg5 {[%clk 0:00:04.5]} 34. Rb1 {[%clk 0:00:21.5]}
34... h4 {[%clk 0:00:04.3]} 35. Rb4 {[%clk 0:00:20.3]} 35... h3 {[%clk
0:00:03.1]} 36. g3 {[%clk 0:00:19.3]} 36... Rd7 {[%clk 0:00:02.3]} 37. Rf4+
{[%clk 0:00:17.3]} 37... Ke7 {[%clk 0:00:01.4]} 38. Kh2 {[%clk 0:00:17.5]} 38...
Rd2 {[%clk 0:00:01.8]} 39. Qe3 {[%clk 0:00:17.8]} 39... Qd5 {[%clk 0:00:01.8]}
40. Re4 {[%clk 0:00:16.9]} 40... Kd6 {[%clk 0:00:02.7]} 41. Rxe6+ {[%clk
0:00:16.6]} 41... Qxe6 {[%clk 0:00:03.6]} 42. Qxd2+ {[%clk 0:00:16.9]} 42... Ke7
{[%clk 0:00:04.5]} 43. Bf1 {[%clk 0:00:15.5]} 43... Qd7 {[%clk 0:00:05.4]} 44.
Qxd7+ {[%clk 0:00:15.3]} 44... Kxd7 {[%clk 0:00:06.3]} 45. Bxh3+ {[%clk
0:00:15.8]} 45... Kc7 {[%clk 0:00:07.1]} 46. Bf1 {[%clk 0:00:15.9]} 46... Kb6
{[%clk 0:00:08]} 47. f4 {[%clk 0:00:16.3]} 1-0

[Event "Late-Titled-Tuesday-Blitz-July-09-2024"]
[Site "Chess.com"]
[Date "2024.07.09"]
[Round "1"]
[White "ChessicallyInclined"]
[Black "AlphaPerseii"]
[Result "1-0"]
[WhiteElo "2735"]
[BlackElo "2405"]
[TimeControl "180+1"]
[EndTime "14:07:32 PDT"]
[Termination "ChessicallyInclined won on time"]

1. Nf3 {[%clk 0:03:00.9]} 1... Nf6 {[%clk 0:02:59.7]} 2. c4 {[%clk 0:03:00.5]}
2... c5 {[%clk 0:02:57.3]} 3. b3 {[%clk 0:03:00.3]} 3... g6 {[%clk 0:02:48.6]}
4. Bb2 {[%clk 0:02:59.8]} 4... Bg7 {[%clk 0:02:49.2]} 5. e4 {[%clk 0:02:57.4]}
5... d6 {[%clk 0:02:44.5]} 6. d3 {[%clk 0:02:51.3]} 6... O-O {[%clk 0:02:37.9]}
7. Nc3 {[%clk 0:02:51.2]} 7... Nc6 {[%clk 0:02:37]} 8. g3 {[%clk 0:02:50.4]}
8... Bg4 {[%clk 0:02:35.8]} 9. Bg2 {[%clk 0:02:49.1]} 9... Nd4 {[%clk
0:02:34.7]} 10. h3 {[%clk 0:02:47.8]} 10... Bxf3 {[%clk 0:02:34.4]} 11. Bxf3
{[%clk 0:02:47.6]} 11... Nd7 {[%clk 0:02:26.2]} 12. Bg2 {[%clk 0:02:44.1]} 12...
Ne5 {[%clk 0:02:12.2]} 13. f4 {[%clk 0:02:39.9]} 13... Nec6 {[%clk 0:02:12.4]}
14. O-O {[%clk 0:02:38.8]} 14... f5 {[%clk 0:02:03.5]} 15. Qd2 {[%clk
0:02:31.2]} 15... Qd7 {[%clk 0:01:56.6]} 16. Rae1 {[%clk 0:02:30.2]} 16... Rae8
{[%clk 0:01:52.3]} 17. h4 {[%clk 0:02:19.8]} 17... e6 {[%clk 0:01:31.4]} 18. Qd1
{[%clk 0:02:11.1]} 18... a6 {[%clk 0:01:18.9]} 19. g4 {[%clk 0:02:02.2]} 19...
Kh8 {[%clk 0:01:00.6]} 20. g5 {[%clk 0:01:59.2]} 20... b5 {[%clk 0:00:55.7]} 21.
h5 {[%clk 0:01:54.8]} 21... Kg8 {[%clk 0:00:54.1]} 22. Kh2 {[%clk 0:01:46]}
22... b4 {[%clk 0:00:51.6]} 23. Na4 {[%clk 0:01:40]} 23... e5 {[%clk 0:00:44.2]}
24. h6 {[%clk 0:01:36.7]} 24... Bh8 {[%clk 0:00:43.6]} 25. exf5 {[%clk
0:01:31.3]} 25... Rxf5 {[%clk 0:00:31.1]} 26. Bh3 {[%clk 0:01:09.3]} 26... Ref8
{[%clk 0:00:26.2]} 27. Nb6 {[%clk 0:01:04.9]} 27... Qf7 {[%clk 0:00:19.2]} 28.
Nd5 {[%clk 0:01:00.5]} 28... exf4 {[%clk 0:00:16.9]} 29. Re4 {[%clk 0:00:26.6]}
29... Be5 {[%clk 0:00:16.7]} 30. Bxf5 {[%clk 0:00:24.8]} 30... Qxf5 {[%clk
0:00:17.6]} 31. Bxd4 {[%clk 0:00:17.2]} 31... cxd4 {[%clk 0:00:15.6]} 32. Qf3
{[%clk 0:00:15.1]} 32... Qxg5 {[%clk 0:00:15.3]} 33. Qh3 {[%clk 0:00:14.5]}
33... f3+ {[%clk 0:00:14.7]} 34. Kh1 {[%clk 0:00:14.3]} 34... Rf5 {[%clk
0:00:09.5]} 35. Rg4 {[%clk 0:00:11.3]} 35... Qd2 {[%clk 0:00:08.4]} 36. Rg3
{[%clk 0:00:06.5]} 36... Rh5 {[%clk 0:00:04.4]} 37. Qxh5 {[%clk 0:00:06.5]}
37... Bxg3 {[%clk 0:00:04.9]} 38. Qh3 {[%clk 0:00:06.4]} 38... Be5 {[%clk
0:00:03.4]} 39. Rxf3 {[%clk 0:00:05.8]} 39... Qd1+ {[%clk 0:00:03.6]} 40. Rf1
{[%clk 0:00:06]} 40... Nd8 {[%clk 0:00:01.8]} 41. Rxd1 {[%clk 0:00:05.6]} 1-0